fUST/lending_fUST_20240902
["ID","MTS","AMOUNT","RATE_DAILY","PERIOD"]
[336987057,1725277932333,167.180179,0.00027301,2]
[336987058,1725277981477,6097.14929432,0.00025204,2]
[336987059,1725277992286,3000.0,0.00069,120]
[336987060,1725277992612,3906.398745,0.0006901,120]
[336987061,1725278146707,784.28682,0.0007,120]
[336987063,1725278162573,500.0,0.00054794,120]
[336987064,1725278167045,600.0,0.000695,120]
[336987065,1725278197495,500.0,0.00054794,30]
[336987066,1725278200163,180.2,0.00065753,120]
[336987067,1725278205498,500.0,0.00054794,120]
[336987068,1725278226626,334.87593049,0.00054794,120]
[336987069,1725278229054,500.0,0.00054794,120]
[336987070,1725278236628,500.0,0.00054794,120]
[336987071,1725278241197,500.0,0.00054794,120]
[336987072,1725278243428,1000.0,0.00019,19]
[336987073,1725278245170,532.33846782,0.00054794,120]
[336987074,1725278268166,500.0,0.00054794,120]
[336987075,1725278274698,500.0,0.00054794,120]
[336987076,1725278276921,402.91218937,0.0007,120]
[336987077,1725278277334,500.0,0.00054794,120]
[336987078,1725278288929,500.0,0.00054794,120]
[336987079,1725278299002,500.0,0.00054794,120]
[336987080,1725278306310,907.08781063,0.00065,120]
[336987081,1725278313121,500.0,0.00054794,120]
[336987082,1725278330731,22092.91218937,0.0006461,2]
[336987083,1725278403108,1036.0,0.0006,2]
[336987085,1725278479501,3001.78731206,0.0006,120]
[336987086,1725278481347,531.97,0.00054797,120]
[336987088,1725278511276,159.0,0.00059,120]
[336987089,1725278538159,485.0,0.0006,120]
[336987090,1725278556663,231.04383838,0.0006,120]
[336987091,1725278604147,4805.0,0.0005,2]
[336987092,1725278613092,277.66471,0.00037107,2]
[336987093,1725278631839,430.0,0.0005,120]
[336987094,1725278715918,608.0,0.000249,2]
[336987095,1725278820938,255.865993,0.0004659,2]
[336987096,1725278836697,500.0,0.00025479,2]
[336987097,1725278837057,500.0,0.00025616,2]
[336987098,1725278837560,500.0,0.00025753,2]
[336987099,1725278837613,9755.39084567,0.0004659,2]
[336987100,1725278837971,500.0,0.00025479,2]
[336987101,1725278838319,500.0,0.00025616,2]
[336987102,1725278838913,500.0,0.00025753,2]
[336987103,1725278864845,153.1137214,0.00041745,2]
[336987104,1725278895645,153.0,0.00041773,2]
[336987105,1725278896233,153.0,0.00041773,2]
[336987106,1725278896321,153.0,0.00041773,2]
[336987107,1725278896898,153.0,0.00041773,2]
[336987108,1725278898014,153.0,0.00041773,2]
[336987109,1725278958522,163.366055,0.00044494,2]
[336987110,1725278964834,241.0929424,0.00044768,2]
[336987111,1725278973821,251.0,0.00044768,2]
[336987112,1725278974603,-3000.0,0.00046419,2]
[336987113,1725278974631,-203.919312,0.00046444,2]
[336987114,1725278974656,-428.7600084,0.00046524,2]
[336987115,1725278974682,-550.0,0.00046589,30]
[336987116,1725278974707,-550.0,0.00046589,5]
[336987117,1725278974734,-15144.60915433,0.0004659,2]
[336987118,1725278974761,-250.0,0.0004681,2]
[336987119,1725278974787,-250.0,0.00046938,2]
[336987120,1725278974815,-250.0,0.00047067,2]
[336987121,1725278974842,-250.0,0.00047195,2]
[336987122,1725278974869,-250.0,0.00047323,2]
[336987123,1725278974897,-250.0,0.00047452,2]
[336987124,1725278974928,-250.0,0.0004758,2]
[336987125,1725278974956,-250.0,0.00047708,2]
[336987126,1725278974982,-250.0,0.00047837,2]
[336987127,1725278975011,-250.0,0.00047965,2]
[336987128,1725278975038,-250.0,0.00048094,2]
[336987129,1725278975067,-250.0,0.00048222,2]
[336987130,1725278975095,-250.0,0.0004835,2]
[336987131,1725278975122,-250.0,0.00048479,2]
[336987132,1725278975149,-250.0,0.00048607,2]
[336987133,1725278975181,-250.0,0.00048735,2]
[336987134,1725278975207,-250.0,0.00048864,2]
[336987135,1725278975233,-250.0,0.00048992,2]
[336987136,1725278975260,-250.0,0.00049121,2]
[336987137,1725278975286,-250.0,0.00049249,2]
[336987138,1725278975313,-122.71152527,0.00049354,5]
[336987139,1725278979026,-227.28847473,0.00049354,5]
[336987140,1725278979051,-770.0,0.00051248,120]
[336987141,1725278979079,-418.87152601,0.00054697,2]
[336987142,1725278979106,-500.0,0.00054797,120]
[336987143,1725278985105,933.6322081,0.0004385,2]
[336987144,1725279006826,600.0,0.000528,2]
[336987145,1725279007194,600.0,0.0005335,2]
[336987146,1725279011510,182.2520564,0.00041962,30]
[336987183,1725279032725,-421.24386263,0.00055561,2]
[336987184,1725279032735,-192.31584973,0.00055561,2]
[336987186,1725279032744,-277.66471,0.00055661,30]
[336987188,1725279032755,-160.0,0.00059,120]
[336987190,1725279032764,-700.0,0.00059899,120]
[336987192,1725279032775,-500.0,0.00059899,120]
[336987194,1725279032784,-500.0,0.00059899,120]
[336987196,1725279032793,-500.0,0.00059899,120]
[336987198,1725279032802,-500.0,0.00059899,120]
[336987200,1725279032812,-8472.79686594,0.000599,2]
[336987304,1725279038985,-500.0,0.00059899,120]
[336987305,1725279038995,-25148.95837183,0.000599,2]
[336987306,1725279039005,-1028.56651807,0.00060051,28]
[336987307,1725279039015,-213.0968319,0.00060151,120]
[336987308,1725279039024,-161.0,0.00061705,120]
[336987309,1725279039034,-162.3552,0.00062572,120]
[336987310,1725279039043,-500.0,0.00062872,120]
[336987311,1725279039053,-501.80702055,0.00062872,120]
[336987312,1725279039062,-500.0,0.00062872,120]
[336987313,1725279039071,-500.0,0.00062872,120]
[336987314,1725279039080,-500.0,0.00062872,120]
[336987315,1725279039089,-500.0,0.00062872,120]
[336987316,1725279039103,-500.0,0.00062872,120]
[336987317,1725279039112,-500.0,0.00062872,120]
[336987318,1725279039121,-195.48760236,0.00062872,120]
[336987319,1725279039133,-304.51239764,0.00062872,120]
[336987320,1725279039144,-1770.82,0.00062872,120]
[336987321,1725279039154,-500.0,0.00062872,120]
[336987322,1725279039163,-500.0,0.00062872,120]
[336987323,1725279039173,-500.0,0.00062872,120]
[336987324,1725279039183,-500.0,0.00062872,120]
[336987325,1725279039192,-1702.05,0.00062872,120]
[336987326,1725279039201,-500.0,0.00062872,120]
[336987327,1725279039210,-500.0,0.00062872,120]
[336987328,1725279039220,-500.0,0.00062872,120]
[336987329,1725279039230,-500.0,0.00062872,120]
[336987330,1725279039240,-3833.89,0.00062872,120]
[336987331,1725279039249,-500.0,0.00062872,120]
[336987332,1725279039258,-500.0,0.00062872,120]
[336987333,1725279039268,-10000.0,0.00063165,120]
[336987334,1725279039278,-979.0,0.00064703,120]
[336987335,1725279039288,-2000.0,0.00065,120]
[336987336,1725279039297,-180.2,0.00065753,120]
[336987337,1725279039307,-294.574,0.00067759,2]
[336987338,1725279039316,-150.0,0.00069,120]
[336987339,1725279039325,-4999.0,0.00069,120]
[336987340,1725279039335,-1207.0,0.00069892,120]
[336987341,1725279039344,-2000.0,0.0007,120]
[336987342,1725279039353,-500.0,0.00076849,120]
[336987343,1725279039362,-500.0,0.00076849,120]
[336987344,1725279039372,-500.0,0.00076849,120]
[336987345,1725279039381,-500.0,0.00076849,120]
[336987346,1725279039392,-500.0,0.00076849,120]
[336987347,1725279039401,-6667.89905463,0.0007685,120]
[336987348,1725279039433,1000.0,0.00055,2]
[336987359,1725279040787,-500.0,0.00062872,120]
[336987360,1725279040796,-3332.10094537,0.0007685,120]
[336987361,1725279040806,-2999.0,0.000785,120]
[336987362,1725279040815,-500.0,0.00079998,120]
[336987363,1725279040825,-284.30469127,0.00079998,120]
[336987364,1725279040835,-1792.150561,0.0008,120]
[336987365,1725279040846,-500.0,0.00089,120]
[336987366,1725279040856,-152.32070971,0.00090673,120]
[336987367,1725279040867,-500.0,0.00091432,2]
[336987368,1725279040878,-500.0,0.00091458,60]
[336987369,1725279040891,-1000.0,0.0009198,2]
[336987370,1725279040902,-1000.0,0.00092006,60]
[336987371,1725279040915,-8995.08,0.00093477,3]
[336987372,1725279040925,-781.08,0.00093487,120]
[336987373,1725279040935,-10794.09,0.00093487,3]
[336987374,1725279040948,-1600.36182307,0.00093488,16]
[336987375,1725279040957,-500.0,0.00093497,7]
[336987376,1725279040967,-500.0,0.00093497,7]
[336987377,1725279040978,-512.12158342,0.00093497,7]
[336987378,1725279040987,-500.0,0.00093497,120]
[336987379,1725279040996,-500.0,0.00093497,120]
[336987380,1725279041006,-500.0,0.00093497,120]
[336987381,1725279041015,-500.0,0.00093497,120]
[336987382,1725279041025,-500.0,0.00093497,120]
[336987383,1725279041034,-500.0,0.00093497,120]
[336987384,1725279041044,-500.0,0.00093497,120]
[336987385,1725279041055,-500.0,0.00093497,120]
[336987386,1725279041067,-123.54599232,0.00093497,120]
[336987402,1725279043705,-1647.27400768,0.00093497,120]
[336987403,1725279043715,-500.0,0.00093497,120]
[336987404,1725279043725,-500.0,0.00093497,120]
[336987405,1725279043735,-500.0,0.00093497,120]
[336987406,1725279043744,-500.0,0.00093497,120]
[336987407,1725279043754,-1702.05,0.00093497,120]
[336987408,1725279043764,-500.0,0.00093497,120]
[336987409,1725279043774,-500.0,0.00093497,120]
[336987410,1725279043784,-500.0,0.00093497,120]
[336987411,1725279043794,-500.0,0.00093497,120]
[336987412,1725279043803,-500.0,0.00093497,120]
[336987413,1725279043813,-500.0,0.00093497,120]
[336987414,1725279043823,-3833.89,0.00093497,120]
[336987415,1725279043833,-500.0,0.00093497,120]
[336987416,1725279043843,-500.0,0.00093497,120]
[336987418,1725279043852,-500.0,0.00093497,120]
[336987419,1725279043862,-500.0,0.00093497,120]
[336987420,1725279043872,-500.0,0.00093498,120]
[336987421,1725279043882,-2213.18,0.00093498,8]
[336987422,1725279043892,-500.0,0.00093498,120]
[336987423,1725279043901,-500.0,0.00093498,21]
[336987424,1725279043911,-500.0,0.00093498,120]
[336987425,1725279043921,-500.0,0.00093498,120]
[336987426,1725279043931,-500.0,0.00093498,120]
[336987427,1725279043940,-305.72984482,0.00093498,120]
[336987428,1725279043950,-584.9,0.00093498,120]
[336987429,1725279043961,-500.0,0.00093498,120]
[336987430,1725279043971,-500.0,0.00093498,120]
[336987431,1725279043980,-500.0,0.00093498,120]
[336987432,1725279043989,-500.0,0.00093498,120]
[336987433,1725279043999,-500.0,0.00093498,120]
[336987434,1725279044010,-500.0,0.00093498,120]
[336987435,1725279044020,-194.29835824,0.00093498,120]
[336987436,1725279044030,-500.0,0.00093498,120]
[336987437,1725279044040,-500.0,0.00093498,120]
[336987438,1725279044049,-500.0,0.00093498,120]
[336987439,1725279044058,-500.0,0.00093498,120]
[336987440,1725279044068,-500.0,0.00093498,120]
[336987441,1725279044077,-500.0,0.00093498,120]
[336987442,1725279044087,-500.0,0.00093498,120]
[336987443,1725279044097,-500.0,0.00093498,120]
[336987444,1725279044111,-500.0,0.00093498,120]
[336987445,1725279044120,-500.0,0.00093498,120]
[336987446,1725279044131,-500.0,0.00093498,120]
[336987447,1725279044142,-191.79475812,0.00093498,120]
[336987448,1725279044153,-500.0,0.00093498,120]
[336987449,1725279044163,-500.0,0.00093498,120]
[336987450,1725279044172,-500.0,0.00093498,120]
[336987451,1725279044183,-500.0,0.00093498,120]
[336987452,1725279044194,-500.0,0.00093498,120]
[336987453,1725279044203,-500.0,0.00093498,120]
[336987454,1725279044212,-500.0,0.00093498,120]
[336987455,1725279044222,-500.0,0.00093498,60]
[336987456,1725279044232,-500.0,0.00093498,120]
[336987457,1725279044241,-500.0,0.00093498,120]
[336987458,1725279044251,-500.0,0.00093498,120]
[336987459,1725279044261,-500.0,0.00093498,120]
[336987460,1725279044271,-500.0,0.00093498,120]
[336987461,1725279044280,-500.0,0.00093498,120]
[336987462,1725279044289,-500.0,0.00093498,120]
[336987463,1725279044382,-500.0,0.00093498,120]
[336987464,1725279044393,-576.47,0.00093498,120]
[336987465,1725279044410,-500.0,0.00093498,120]
[336987466,1725279044421,-500.0,0.00093498,120]
[336987467,1725279044430,-500.0,0.00093498,120]
[336987468,1725279044440,-500.0,0.00093498,120]
[336987469,1725279044449,-500.0,0.00093498,120]
[336987470,1725279044458,-500.0,0.00093498,120]
[336987471,1725279044468,-500.0,0.00093498,120]
[336987472,1725279044478,-501.15176496,0.00093498,120]
[336987473,1725279044488,-1332.92,0.00093498,120]
[336987474,1725279044497,-8000.34549367,0.00093499,120]
[336987501,1725279045067,-1999.65450633,0.00093499,120]
[336987503,1725279045077,-150.112233,0.00094,23]
[336987505,1725279045086,-500.0,0.00095,120]
[336987506,1725279045099,-500.0,0.00095207,60]
[336987507,1725279045108,-500.0,0.00095755,60]
[336987508,1725279045117,-160.0,0.00096465,2]
[336987509,1725279045127,-1084.33845265,0.00097898,2]
[336987510,1725279045138,-500.0,0.00097987,120]
[336987511,1725279045148,-544.16363607,0.00097988,17]
[336987569,1725279104562,450.36916,0.00054878,30]
[336987570,1725279127589,-700.0,0.00059898,120]
[336987571,1725279127616,-500.0,0.00059899,120]
[336987572,1725279127646,-500.0,0.00059899,120]
[336987573,1725279127671,-500.0,0.00059899,120]
[336987574,1725279127697,-500.0,0.00059899,120]
[336987575,1725279127723,-500.0,0.00059899,120]
[336987576,1725279127748,-500.0,0.00059899,120]
[336987577,1725279127774,-500.0,0.00059899,120]
[336987578,1725279127799,-500.0,0.00059899,120]
[336987579,1725279127825,-500.0,0.00059899,120]
[336987580,1725279128701,516.0,0.0006,2]
[336987581,1725279129792,500.0,0.00059899,120]
[336987582,1725279132156,-2290.7442871,0.00060304,2]
[336987583,1725279132182,-500.0,0.00062871,120]
[336987584,1725279132210,-509.62050051,0.00062871,120]
[336987585,1725279132237,-500.0,0.00062871,120]
[336987586,1725279132262,-500.0,0.00062871,120]
[336987587,1725279132288,-500.0,0.00062871,120]
[336987588,1725279132315,-500.0,0.00062871,120]
[336987589,1725279132342,-500.0,0.00062871,120]
[336987590,1725279132366,-500.0,0.00062872,120]
[336987591,1725279132394,-783.48,0.00062872,120]
[336987592,1725279132421,-2195.51,0.00062872,8]
[336987593,1725279132447,-500.0,0.00062872,21]
[336987594,1725279132475,-500.0,0.00062872,120]
[336987595,1725279132502,-500.0,0.00062872,120]
[336987596,1725279132529,-602.2,0.00062872,120]
[336987597,1725279132557,-500.0,0.00062872,120]
[336987598,1725279132584,-500.0,0.00062872,120]
[336987599,1725279132611,-500.0,0.00062872,120]
[336987600,1725279132638,-529.01758195,0.00062872,120]
[336987601,1725279132667,-500.0,0.00062872,120]
[336987602,1725279132693,-705.0,0.00064702,120]
[336987603,1725279132730,500.0,0.00059899,120]
[336987604,1725279133621,500.0,0.00062871,120]
[336987605,1725279134846,500.0,0.00062872,120]
[336987606,1725279136129,500.0,0.00062872,120]
[336987607,1725279139953,500.0,0.00059899,120]
[336987608,1725279143126,553.65,0.00062871,120]
[336987609,1725279143403,500.0,0.00059899,120]
[336987610,1725279145895,500.0,0.00062872,120]
[336987611,1725279148163,500.0,0.00062872,120]
[336987612,1725279148272,500.0,0.00062872,120]
[336987613,1725279150937,500.0,0.00062872,120]
[336987614,1725279153547,500.0,0.00062872,120]
[336987615,1725279154976,500.0,0.00062871,120]
[336987616,1725279160350,500.0,0.00062872,120]
[336987617,1725279161537,500.0,0.00059899,120]
[336987618,1725279165144,500.0,0.00062871,120]
[336987619,1725279165312,500.0,0.00062872,120]
[336987620,1725279168058,500.0,0.00062871,120]
[336987621,1725279168519,606.13798861,0.00059899,120]
[336987622,1725279170319,500.0,0.00062872,120]
[336987623,1725279170906,224.63964183,0.00059899,120]
[336987624,1725279170937,275.36035817,0.00059899,120]
[336987626,1725279175470,501.45250274,0.00059899,120]
[336987627,1725279178721,500.0,0.00059899,120]
[336987628,1725279185518,500.0,0.00059899,120]
[336987629,1725279190585,500.0,0.00059899,120]
[336987630,1725279194188,500.0,0.00059899,120]
[336987631,1725279196933,3000.0,0.000254,2]
[336987632,1725279197468,3000.0,0.0002541,2]
[336987633,1725279198100,3000.0,0.0002542,2]
[336987634,1725279198582,3000.0,0.0002543,2]
[336987635,1725279198965,3000.0,0.0002544,2]
[336987636,1725279199615,1007.18713909,0.0002545,2]
[336987637,1725279199738,1992.81286091,0.0002545,2]
[336987638,1725279200312,3000.0,0.0002546,2]
[336987639,1725279200651,3000.0,0.0002547,2]
[336987640,1725279201194,3000.0,0.0002548,2]
[336987641,1725279201635,3000.0,0.0002549,2]
[336987642,1725279202117,3000.0,0.000255,2]
[336987643,1725279202579,4203.569861,0.0002551,2]
[336987644,1725279205731,3000.0,0.00051,85]
[336987645,1725279206227,803.61727809,0.0005101,85]
[336987646,1725279327505,24900.0,0.00044659,2]
[336987647,1725279364703,100.0,0.0005,35]
[336987648,1725279391708,158.490273,0.00044342,2]
[336987649,1725279391919,158.490273,0.00044464,2]
[336987650,1725279392176,158.490273,0.00044586,2]
[336987651,1725279392542,158.490273,0.00044707,2]
[336987652,1725279392909,158.490273,0.00044829,2]
[336987653,1725279393086,158.490273,0.00044951,2]
[336987654,1725279404411,819.2980024,0.00041802,2]
[336987657,1725279469613,209.7899059,0.00044122,2]
[336987658,1725279470982,23019.9704537,0.00044396,2]
[336987660,1725279889123,503.74077903,0.00034618,2]
[336987661,1725279889181,503.64031212,0.00034965,2]
[336987662,1725279896436,158.490273,0.00036741,2]
[336987663,1725279896642,158.490273,0.00036888,2]
[336987664,1725279896880,158.490273,0.00037035,2]
[336987665,1725279897101,158.490273,0.00037183,2]
[336987666,1725279897342,158.490273,0.0003733,2]
[336987667,1725279897562,158.490273,0.00037477,2]
[336987668,1725279897782,158.490273,0.00037624,2]
[336987669,1725279898001,158.490273,0.00037772,2]
[336987670,1725279898219,158.490273,0.00037919,2]
[336987671,1725279898443,158.490273,0.00038066,2]
[336987672,1725279898849,158.490273,0.00038214,2]
[336987673,1725279899065,158.490273,0.00038361,2]
[336987674,1725279899275,158.490273,0.00038508,2]
[336987675,1725279899508,158.490273,0.00038655,2]
[336987677,1725279982035,3000.0,0.00037068,2]
[336987678,1725280015057,205.28217,0.00037068,2]
[336987679,1725280055267,251.0,0.00037068,2]
[336987680,1725280057718,4000.0,0.0004,2]
[336987681,1725280058150,4500.0,0.0004,2]
[336987682,1725280063553,300.0,0.0004,12]
[336987683,1725280072908,9517.47291685,0.0002,2]
[336987684,1725280072936,25000.0,0.0002,2]
[336987685,1725280072965,203.23718565,0.0002,2]
[336987686,1725280089379,914.31962285,0.000167,2]
[336987688,1725280095738,10000.0,0.00021,5]
[336987689,1725280095989,2118.57546891,0.0002,2]
[336987690,1725280115373,5520.75219815,0.0003,2]
[336987691,1725280115524,6084.28552444,0.00027,3]
[336987692,1725280120861,20864.14635645,0.0002,2]
[336987693,1725280122149,4135.85364355,0.00022,2]
[336987694,1725280122684,373.35122882,0.000129,2]
[336987701,1725280153331,-426.26278465,0.00022,2]
[336987757,1725280231681,-306.70934772,0.00022,2]
[336987758,1725280231691,-7060.56565228,0.00027,3]
[336987759,1725280231738,-1756.24545313,0.00027,3]
[336987776,1725280237925,-1346.5,0.00027,3]
[336987777,1725280237937,-2504.97427098,0.00027,3]
[336987780,1725280238285,-43790.99903941,0.00027,3]
[336987781,1725280238300,-3999.999999,0.0002799,2]
[336987782,1725280238318,-368.78756326,0.0003,7]
[336987783,1725280238333,-472.21600091,0.00030706,2]
[336987784,1725280238348,-500.0,0.00032033,5]
[336987785,1725280238364,-465.36080005,0.00032242,2]
[336987786,1725280238382,-1000.0,0.00032581,5]
[336987787,1725280238400,-150.0,0.00034792,2]
[336987788,1725280238414,-500.0,0.0003505,2]
[336987789,1725280238425,-1000.0,0.00035598,2]
[336987790,1725280238441,-500.0,0.00036496,2]
[336987791,1725280238456,-153.0,0.00041802,2]
[336987792,1725280238473,-266.5218682,0.00041802,2]
[336987793,1725280238489,-174.61728,0.00041811,30]
[336987794,1725280238501,-7958.91443536,0.00042064,2]
[336987798,1725280240031,-16941.08556464,0.00042064,2]
[336987799,1725280240045,-225.18458,0.00042145,2]
[336987800,1725280240059,-31294.0461768,0.0004407,2]
[336987801,1725280240073,-11044.7802705,0.00044072,2]
[336987802,1725280240087,-2505.98498103,0.000449,28]
[336987804,1725280240106,-264.85,0.00045,35]
[336987805,1725280240119,-923.16078325,0.000465,120]
[336987806,1725280240132,-355.11,0.00047,120]
[336987807,1725280240144,-500.0,0.000492,60]
[336987808,1725280240157,-8550.84,0.0004999,3]
[336987809,1725280240170,-16305.88,0.0004999,3]
[336987810,1725280240183,-20094.78731105,0.0005,30]
[336987811,1725280240195,-3000.0,0.00051,85]
[336987812,1725280240211,-3000.0,0.0005101,85]
[336987813,1725280240224,-3000.0,0.0005102,85]
[336987814,1725280240234,-3000.0,0.0005103,85]
[336987815,1725280240340,-3000.0,0.0005104,85]
[336987816,1725280240367,-3000.0,0.0005105,85]
[336987817,1725280240378,-3000.0,0.0005106,85]
[336987818,1725280240388,-4500.401559,0.0005107,85]
[336987819,1725280240398,-500.0,0.0005287,120]
[336987820,1725280240408,-500.0,0.0005287,120]
[336987821,1725280240418,-500.0,0.0005287,120]
[336987822,1725280240428,-271.69260436,0.0005287,120]
[336987823,1725280240438,-771.11,0.0005469,30]
[336987824,1725280240447,-9547.12997562,0.000547,2]
[336987833,1725280243265,-452.87002438,0.000547,2]
[336987834,1725280243275,-12381.54723425,0.000547,120]
[336987850,1725280245920,-598.30034209,0.000547,120]
[336987859,1725280687992,999.0,0.00023,60]
[336987934,1725281432221,-163.366055,0.00022868,2]
[336987935,1725281432232,-254.0262653,0.00023478,2]
[336987936,1725281432249,-231.92424639,0.00023578,2]
[336987937,1725281432428,-636.53625817,0.00023578,2]
[336987938,1725281432440,-293.56680005,0.00023578,2]
[336987948,1725281438195,-1837.97269539,0.00023578,2]
[336987949,1725281438204,-162.3552,0.00023887,2]
[336987950,1725281438214,-4864.5165444,0.0002397,2]
[336987951,1725281438223,-225.18458,0.00024052,2]
[336987952,1725281438233,-300.0,0.00024209,2]
[336987953,1725281438242,-300.0,0.00024209,2]
[336987954,1725281438254,-13897.2637456,0.0002421,2]
[336987955,1725281438263,-11044.7802705,0.00024524,2]
[336987956,1725281438272,-3000.0,0.000254,2]
[336987957,1725281438282,-3000.0,0.0002541,2]
[336987958,1725281438291,-3000.0,0.0002542,2]
[336987959,1725281438300,-3000.0,0.0002543,2]
[336987960,1725281438310,-3000.0,0.0002544,2]
[336987961,1725281438319,-3000.0,0.0002545,2]
[336987962,1725281438329,-3000.0,0.0002546,2]
[336987963,1725281438339,-3000.0,0.0002547,2]
[336987964,1725281438348,-500.0,0.00025479,2]
[336987965,1725281438359,-500.0,0.00025479,2]
[336987966,1725281438369,-3000.0,0.0002548,2]
[336987967,1725281438378,-3000.0,0.0002549,2]
[336987968,1725281438388,-3000.0,0.000255,2]
[336987969,1725281438398,-3000.0,0.0002551,2]
[336987970,1725281438408,-3000.0,0.0002552,2]
[336987971,1725281438417,-3000.0,0.0002553,2]
[336987972,1725281438427,-3000.0,0.0002554,2]
[336987973,1725281438436,-3000.0,0.0002555,2]
[336987974,1725281438446,-3000.0,0.0002556,2]
[336987975,1725281438455,-3000.0,0.0002557,2]
[336987976,1725281438464,-3000.0,0.0002558,2]
[336987977,1725281438473,-3000.0,0.0002559,2]
[336987978,1725281438483,-4259.21132914,0.0002559,3]
[336987979,1725281438493,-5346.382722,0.000256,2]
[336987980,1725281438572,-423.33540398,0.00025616,2]
[336987981,1725281438582,-181.67066528,0.00027123,2]
[336987982,1725281438592,-225.18458,0.00036077,2]
[336987983,1725281438604,-355.11,0.00038,15]
[336987984,1725281438615,-153.0,0.00040792,2]
[336987985,1725281438625,-478.0,0.0005,120]
[336987986,1725281438637,-500.0,0.0005,120]
[336987987,1725281438646,-500.0,0.0005,120]
[336987988,1725281438656,-271.69260436,0.0005,120]
[336987989,1725281438665,-3000.0,0.00051,85]
[336987990,1725281438674,-3000.0,0.0005101,85]
[336987991,1725281438684,-3000.0,0.0005102,85]
[336987992,1725281438693,-3000.0,0.0005103,85]
[336987993,1725281438704,-3000.0,0.0005104,85]
[336987994,1725281438714,-500.0,0.00051049,7]
[336987995,1725281438724,-500.0,0.00051049,7]
[336987996,1725281438735,-512.12158342,0.00051049,7]
[336987997,1725281438746,-3000.0,0.0005105,85]
[336987998,1725281438756,-3000.0,0.0005106,85]
[336987999,1725281438766,-391.17305442,0.0005107,85]
[336988000,1725281438791,-504.03737507,0.0005107,85]
[336988001,1725281438802,-2104.78957051,0.0005107,85]
[336988002,1725281438811,-65.10526976,0.0005108,85]
[336988005,1725281440210,-5088.91356724,0.0005108,85]
[336988006,1725281440220,-150.112233,0.000514,10]
[336988007,1725281440230,-150.112233,0.000518,10]
[336988008,1725281440240,-500.0,0.0005215,10]
[336988009,1725281440249,-500.47895839,0.0005215,2]
[336988010,1725281440259,-150.112233,0.000522,14]
[336988011,1725281440268,-150.112233,0.000525,16]
[336988012,1725281440278,-994.3576417,0.00052698,10]
[336988013,1725281440288,-150.112233,0.000529,14]
[336988014,1725281440297,-150.112233,0.000529,10]
[336988015,1725281440306,-1033.67387231,0.000531,2]
[336988016,1725281440316,-4259.21132914,0.0005315,6]
[336988017,1725281440325,-151.0,0.0005317,120]
[336988018,1725281440335,-10113.17,0.0005318,3]
[336988019,1725281440344,-4259.21132914,0.0005318,6]
[336988020,1725281440354,-151.0,0.0005319,120]
[336988021,1725281440363,-163.944907,0.0005319,120]
[336988022,1725281440372,-446.645366,0.0005319,120]